Cogmind - Beta 15 @@@ ROGUE MODE // 2025.07.31 @ 09:17:58 Player: beans Result: Destroyed by OH-8KW(E) with Heavy Battle Rifle Performance ------------- Evolutions (0) 0 Regions Visited (3) 600 Robots Destroyed (11) 55 Value Destroyed (207) 207 Prototype IDs (6) 120 Alien Tech Used (0) 0 Bonus (288) 288 TOTAL SCORE: 1270 Bonus ------- Registered with UFD 300 Friendly Fire -12 Cogmind --------- Core Integrity 0/250 Matter 237/300 Energy 100/100 System Corruption 2% Temperature Cool (0) Movement Core (100) Ox1 Location -7/Scraptown Parts ------- > --- POWER (1) -------- (None) > --- PROPULSION (2) --- (None) > --- UTILITY (2) ------ 0b10 Decoder Chip [Looter] > --- WEAPON (2) ------- Assault Cannon > --- INVENTORY (5) ---- Nuclear Pulse Thruster Subdweller Machine Gun Heavy Machine Gun Peak State ------------ > --- POWER ------------ Fission Core > --- PROPULSION ------- Light Treads Light Treads > --- UTILITY ---------- 0b10 Decoder Chip [Looter] > --- WEAPON ----------- Medium Laser Shock Bomb Launcher > --- INVENTORY -------- Nuclear Pulse Thruster Subdweller Machine Gun Heavy Machine Gun Assault Cannon Heavy Missile Launcher [Rating: 17] Favorites ----------- Power Fission Core Engine Light Ion Engine Power Core Fission Core Propulsion Light Treads Treads Light Treads Utility 0b10 Decoder Chip [Looter] Processor 0b10 Decoder Chip [Looter] Weapon Medium Laser Energy Gun Medium Laser Ballistic Gun Subdweller Machine Gun Ballistic Cannon Assault Cannon Launcher Shock Bomb Launcher Build | -11 -10 -10 -7 ------- Run | Yrd Mat Sub Scr Slots Evolved . | . . . . Power . | . . . . Propulsion . | . . . . Utility . | . . . . Weapon . | . . . . Parts Attached 11 | 5 . 1 5 Power 2 | 1 . . 1 Engine 1 | 1 . . . Core 1 | . . . 1 Reactor . | . . . . Propulsion 2 | 2 . . . Treads 2 | 2 . . . Leg . | . . . . Wheel . | . . . . Hover . | . . . . Flight . | . . . . Utility 1 | . . . 1 Device . | . . . . Storage . | . . . . Processor 1 | . . . 1 Hackware . | . . . . Protection . | . . . . Artifact . | . . . . Weapon 6 | 2 . 1 3 Energy Gun 2 | 2 . . . Energy Cannon . | . . . . Ballistic Gun 1 | . . 1 . Ballistic Cannon 1 | . . . 1 Launcher 2 | . . . 2 Special Weapon . | . . . . Impact Weapon . | . . . . Slashing Weapon . | . . . . Piercing Weapon . | . . . . Special Melee Weapon . | . . . . Unidentified Prototypes . | . . . . Parts Lost 6 | . . . 6 Power 1 | . . . 1 Propulsion 2 | . . . 2 Utility . | . . . . Weapon 3 | . . . 3 Highest Loss Streak 6 | . . . 6 To Critical Strikes 1 | . . . 1 Average Backups 3 | . . 2 4 Power . | . . . . Propulsion . | . . 1 . Utility . | . . . . Weapon 2 | . . 1 3 Tool/Special . | . . . . Unused Backups 5 | . . . 5 Power . | . . . . Propulsion 2 | . . . 2 Utility 1 | . . . 1 Weapon 2 | . . . 2 Tool/Special . | . . . . Average Slot Usage (%) 62 | . 57 57 66 Core 5 | . . . 8 Treads 27 | . 28 28 27 Energy Gun 17 | . 28 20 14 Ballistic Gun 2 | . . 7 . Launcher 8 | . . . 13 Peak Build Rating 17 | 5 4 5 17 Average Rating 8 | 3 4 4 10 On Entrance 3 | . 4 4 5 Naked Turns . | . . . . Heaviest Build 18 | 4 4 6 18 Greatest Support 40 | 40 40 40 40 Greatest Overweight (x) . | . . . . Average Overweight (x) . | . . . . Largest Inventory Capacity 5 | 5 5 5 5 Average Capacity 5 | 5 5 5 5 Most Carried 5 | 3 1 4 5 Average Carried 3 | . . 2 4 Final Capacity 5 | 5 5 5 5 Final Carried 4 | . 1 4 3 Class Distribution -------------------- 100% | Mutant Dominant Class ---------------- Mutant | -10/Materials Mutant | -10/Subcaves Mutant | -7/Scraptown Resources | -11 -10 -10 -7 ----------- Run | Yrd Mat Sub Scr Matter Collected 312 | 250 . 10 52 Remotely . | . . . . Salvage Created 563 | 84 90 39 350 Parts 37 | 1 14 3 19 Haulers Intercepted . | . . . . Recyclers Shooed . | . . . . Parts Field Recycled . | . . . . Retrieved Matter . | . . . . Parts Self-Destructed 1 | . . 1 . Prevented . | . . . . Kills | -11 -10 -10 -7 ------- Run | Yrd Mat Sub Scr Combat Hostiles Destroyed 6 | . . 1 5 Guns 1 | . . 1 . AOE 5 | . . . 5 Classes Destroyed 9 | 1 2 1 5 Worker 1 | . 1 . . Builder 3 | . 3 . . Recycler 1 | 1 . . . Subdweller 1 | . . 1 . Bolteater 2 | . . . 2 Explorer 2 | . . . 2 Ranger 1 | . . . 1 Scientist 1 | . . . 1 Tinkerer 1 | . . . 1 Best Kill Streak 7 | 1 2 1 7 Combat Bots Only 5 | . . 1 5 Max Kills in Single Turn 6 | 1 1 1 6 Gunslinging . | . . . . Exploded 5 | . . . 5 Melee . | . . . . Uniques/NPCs Destroyed . | . . . . Combat | -11 -10 -10 -7 -------- Run | Yrd Mat Sub Scr Hostile Shots Fired 63 | . 2 5 56 Missed 18 | . . . 18 Hits 45 | . 2 5 38 Melee 9 | . . . 9 Projectile 36 | . 2 5 29 Critical Strikes 4 | . . . 4 Damage Taken 846 | . 32 133 681 Core 263 | . . . 263 Absorbed by Shields . | . . . . Core Remaining (%) 100 | 100 . . . Volleys Fired 19 | 2 7 3 7 Largest 2 | 2 2 2 2 Hottest 100 | 100 100 100 89 Shots Fired 35 | 4 14 6 11 Gun 28 | 4 14 6 4 Cannon 4 | . . . 4 Launcher 3 | . . . 3 Special . | . . . . Kinetic 4 | . . . 4 Thermal 28 | 4 14 6 4 Explosive 2 | . . . 2 Electromagnetic 1 | . . . 1 Robot Hit Streak 6 | 2 6 3 5 Robot Miss Streak 2 | 1 2 1 2 Penetration Max . | . . . . Secondary Targets 1 | . 1 . . Max Gunslinging Chain 1 | . 1 . . Shots Hit Robots 23 | 2 9 4 8 Core Hits 26 | 2 5 4 15 Critical Kills . | . . . . Critical Parts Destroyed . | . . . . Critical Strikes 3 | . . 2 1 Burn 3 | . . 2 1 Melee Attacks . | . . . . Impact . | . . . . Slashing . | . . . . Piercing . | . . . . Sneak Attacks . | . . . . Combat Hostiles . | . . . . Follow-up Attacks . | . . . . Damage Inflicted 908 | 24 124 60 700 Guns 258 | 24 124 60 50 Cannons 41 | . . . 41 Explosions 609 | . . . 609 Melee . | . . . . Ramming . | . . . . Kinetic 41 | . . . 41 Thermal 258 | 24 124 60 50 Explosive 546 | . . . 546 Electromagnetic 63 | . . . 63 Impact . | . . . . Slashing . | . . . . Piercing . | . . . . Highest Corruption 2 | . 1 1 2 Average Corruption 1 | . 1 1 1 Corruption Purged . | . . . . Corruption Blocked . | . . . . Effects 15 | . . 3 12 Message Errors 5 | . . 2 3 Matter Fused 4 | . . . 4 Data Loss (minor) 3 | . . 1 2 Data Loss (major) 1 | . . . 1 Misfires 1 | . . . 1 Alerts 1 | . . . 1 Overload Shots . | . . . . Overflow Damage 102 | . . . 102 Projectiles . | . . . . Explosions 102 | . . . 102 Melee . | . . . . Knockbacks 1 | . . . 1 Impact . | . . . . Kinetic 1 | . . . 1 Secondary . | . . . . Self-Inflicted Damage 117 | . . . 117 Shots 3 | . . . 3 Rammed . | . . . . Targets Rammed . | . . . . Kicked . | . . . . Crushed . | . . . . Highest Temperature 72 | 48 72 . 40 Average Temperature 25 | 27 28 . 19 Received Heat Transfer 18 | . 18 . . Siege Activations . | . . . . Martial Activations . | . . . . Shielding Activations . | . . . . Robots Disrupted . | . . . . Combat Hostiles . | . . . . Robots Corrupted . | . . . . Combat Hostiles . | . . . . Parts Fried . | . . . . Impact Corruptions . | . . . . Robots Melted . | . . . . Combat Hostiles . | . . . . Parts Melted 3 | . 1 2 . Heat Transferred 999 | 74 370 333 222 Parts Sabotaged . | . . . . Parts Stolen . | . . . . Parts Stripped . | . . . . Power Chain Reactions . | . . . . Alert | -11 -10 -10 -7 ------- Run | Yrd Mat Sub Scr Maximum Alert Level . | . . . . Low Security (%) 100 | 100 100 . . Level 1 . | . . . . Level 2 . | . . . . Level 3 . | . . . . Level 4 . | . . . . Level 5 . | . . . . High Security . | . . . . Max Security . | . . . . Peak Influence 5 | 5 5 . . Initial . | . . . . Average . | . . . . Influence Increases 25 | 5 20 . . Destroy 0b10 Robot/NC 25 | 5 20 . . Influence Decreases 25 | 5 20 . . Time Decay 25 | 5 20 . . Squads Dispatched 1 | . 1 . . Investigation 1 | . 1 . . Extermination . | . . . . Reinforcement . | . . . . Assault . | . . . . Garrison . | . . . . Intercept . | . . . . Searches Triggered . | . . . . Construction Impeded . | . . . . Haulers Reinforced . | . . . . Active Scanning Responses . | . . . . Cargo Convoy Interrupts . | . . . . Stealth | -11 -10 -10 -7 --------- Run | Yrd Mat Sub Scr Distress Signals . | . . . . Communications Jammed . | . . . . Distress Signals . | . . . . Times Spotted 18 | . 6 2 10 Peak Tracking Total 17 | . 3 2 17 Tactical Retreats . | . . . . Traps | -11 -10 -10 -7 ------- Run | Yrd Mat Sub Scr Traps Triggered 1 | . 1 . . Indirectly . | . . . . Trap Hack Attempts . | . . . . Triggered . | . . . . Disarmed . | . . . . Reprogrammed . | . . . . Reused . | . . . . Traps Extracted . | . . . . Installed . | . . . . Triggered . | . . . . Machines | -11 -10 -10 -7 ---------- Run | Yrd Mat Sub Scr Machines Disabled 3 | . . . 3 Max in Single Turn 2 | . . . 2 Machines Repaired . | . . . . Machines Dismantled . | . . . . Machines Sabotaged . | . . . . Overloaded Fab Kills . | . . . . Hacking | -11 -10 -10 -7 --------- Run | Yrd Mat Sub Scr Machines Accessed 2 | . . . 2 Terminals . | . . . . Fabricators . | . . . . Repair Stations . | . . . . Recycling Units . | . . . . Scanalyzers . | . . . . Garrison Access . | . . . . Total Hacks 12 | . . . 12 Successful 12 | . . . 12 Failed . | . . . . Catastrophic . | . . . . Database Lockouts . | . . . . Manual . | . . . . Terminals . | . . . . Fabricators . | . . . . Repair Stations . | . . . . Recycling Units . | . . . . Scanalyzers . | . . . . Garrison Access . | . . . . Terminal Hacks 12 | . . . 12 Record 5 | . . . 5 Robot Analysis 7 | . . . 7 Fabricator Hacks . | . . . . Repair Station Hacks . | . . . . Recycling Unit Hacks . | . . . . Scanalyzer . | . . . . Garrison Access Hacks . | . . . . Unauthorized Hacks . | . . . . Terminals . | . . . . Fabricators . | . . . . Repair Stations . | . . . . Recycling Units . | . . . . Scanalyzers . | . . . . Garrison Access . | . . . . Data Cores Recovered . | . . . . Used . | . . . . Hacking Detections . | . . . . Full Trace Events . | . . . . Feedback Events . | . . . . Feedback Blocked . | . . . . Robot Schematics Acquired . | . . . . Robots Built . | . . . . Authchips . | . . . . Time . | . . . . Total Robot Build Rating . | . . . . Part Schematics Acquired . | . . . . Parts Built . | . . . . Authchips . | . . . . Time . | . . . . Total Part Build Rating . | . . . . Parts Repaired . | . . . . Time . | . . . . Parts Recycled . | . . . . Recycled Matter . | . . . . Retrieved Matter . | . . . . Retrieved Components . | . . . . Parts Scanalyzed . | . . . . Part Schematics Acquired . | . . . . Parts Damaged . | . . . . Bothacking | -11 -10 -10 -7 ------------ Run | Yrd Mat Sub Scr Used RIF Installer . | . . . . Robots Hacked . | . . . . Non-combat . | . . . . Combat . | . . . . Robot Hacks Applied . | . . . . Relay Couplers Released . | . . . . Fabnet Peak Effective % . | . . . . Robots Rewired . | . . . . Allies Hacked . | . . . . Hacks Repelled . | . . . . Allies | -11 -10 -10 -7 -------- Run | Yrd Mat Sub Scr Total Allies . | . . . . Largest Group . | . . . . Highest-Rated Group . | . . . . Highest-Rated Ally . | . . . . Total Orders . | . . . . Ally Attacks . | . . . . Total Damage . | . . . . Kills . | . . . . Allies Corrupted . | . . . . Allies Melted . | . . . . Intel | -11 -10 -10 -7 ------- Run | Yrd Mat Sub Scr Active Infowar (turns) 76 | . . . 76 Decoding 76 | . . . 76 Robot Analysis Total 7 | . . . 7 Derelict Logs Recovered . | . . . . Drone Launches . | . . . . Drone Recoveries . | . . . . Exploration | -11 -10 -10 -7 ------------- Run | Yrd Mat Sub Scr Turns Passed 2267 | 84 224 545 1414 Spaces Moved 1098 | 53 127 94 824 Core 15 | 15 . . . Treads 1083 | 38 127 94 824 Legs . | . . . . Wheels . | . . . . Hover . | . . . . Flight . | . . . . Fastest Speed 50 | 50 160 160 160 Average Speed 158 | 128 160 160 160 Slowest Speed 160 | 160 160 160 160 Overloaded Moves . | . . . . Propulsion Burnouts . | . . . . Robots Hopped . | . . . . Potential Cave-ins . | . . . . Cave-ins Triggered . | . . . . Exploration Rate (%) 31 | 5 50 7 63 Regions Visited 3 Branch Regions 2 Pre-discovered Areas . | . . . . Known Exits Taken . | . . . . Unknown Exits Taken 3 | 1 1 1 . Scrap Searched 4 | . . . 4 Spaces Dug . | . . . . Terrain Destroyed 12 | . . . 12 Melee . | . . . . Projectile . | . . . . AOE 12 | . . . 12 Terrain Rammed . | . . . . Walls Destroyed . | . . . . Machines Disabled . | . . . . Actions | -11 -10 -10 -7 --------- Run | Yrd Mat Sub Scr Total 1591 | 65 134 482 910 Wait 447 | . . 382 65 Move 1095 | 52 126 93 824 Hop . | . . . . Pick Up 13 | 5 1 3 4 Fast Attach 4 | . . . 4 Attach 7 | 5 . . 2 Detach . | . . . . Swap 1 | . . 1 . Drop 5 | 1 . . 4 Fire 19 | 2 7 3 7 Melee . | . . . . Ram . | . . . . Kick . | . . . . Crush . | . . . . Escape Stasis . | . . . . Rewire . | . . . . Trap . | . . . . Miscellaneous . | . . . . Route ------- -11/Scrapyard -10/Materials (discovered 2 exits: [*Min] / [*Sub]) -10/Subcaves (discovered 2 exits: [*Mat] / *Scr) -7/Scraptown History --------- Turn | Location | Event 8 | -11/Scrapyard | Discovered new exit (range 15) 85 | -11/Scrapyard | Entered Materials 86 | -10/Materials | Met a group of wandering Federalists 160 | -10/Materials | Discovered new exit (range 7) 303 | -10/Materials | Discovered new exit (range 6) 309 | -10/Materials | Entered Subcaves 309 | -10/Subcaves | Accompanied by 1 ally 310 | -10/Subcaves | Continued accompanying wandering Federalists (1) 310 | -10/Subcaves | Approached by a straggling Scientist 314 | -10/Subcaves | Build established: Mutant 535 | -10/Subcaves | Discovered new exit (range 12) 550 | -10/Subcaves | Wandering Federalist uncovered a shortcut to Scraptown 854 | -10/Subcaves | Entered Scraptown 1080 | -7/Scraptown | Visited Shadow of the Wyrm 1155 | -7/Scraptown | Visited SPCMW 1195 | -7/Scraptown | Visited Comm Corps 1273 | -7/Scraptown | Heard Great Nut preacher, LISTEN AND RECITE! 1585 | -7/Scraptown | Visited TADAMA 1672 | -7/Scraptown | Visited Cyclists 1717 | -7/Scraptown | Visited Red Mages 1802 | -7/Scraptown | Visited The Evicted 1904 | -7/Scraptown | Visited UFD Registry 1904 | -7/Scraptown | Registered with UFD as "Quantumsplitter" 1954 | -7/Scraptown | Visited DA-N13 Charitable Foundation 1973 | -7/Scraptown | Found DCF Scrap (29 items) 2004 | -7/Scraptown | Visited Science Testing Area 2055 | -7/Scraptown | Visited Abandonware Association 2114 | -7/Scraptown | Learned abandonware demo "HACKBUD.EXE" 2114 | -7/Scraptown | Learned abandonware demo "REVENGE.EXE" 2146 | -7/Scraptown | Visited Analyses Database 2184 | -7/Scraptown | Visited Infowarlord's Domain 2221 | -7/Scraptown | Visited Scrapoid Research Area 2237 | -7/Scraptown | Attacked by Scraptown defenders 2255 | -7/Scraptown | Core integrity fell below 50% 2267 | -7/Scraptown | Core integrity fell below 20% 2268 | -7/Scraptown | Destroyed by OH-8KW(E) with Heavy Battle Rifle Last Messages --------------- VB-HTL(r) destroyed. W9-L3X(x) destroyed. Fission Core destroyed. Destroyed Fission Core. Destroyed Wheel. XY-0JN(x) destroyed. 7U-6WD(r) destroyed. Destroyed Lgt. Ion Engine. EQ-1AM(c) destroyed. FW-TZY(h) destroyed. K1-KJO(c) suffers critical hit (Burn). Destroyed Lgt. Ion Engine. KZ-GET(c) destroyed. Critical hit (Destroy). Hvy. Missile Launcher destroyed. Lgt. Treads destroyed. Med. Laser destroyed. Machine disabled. 08-357(p) knocked back. The unstable cave ceiling collapses. Map ----- +----------------------------------------------------+ | ?????????????????????????????????????????????????? | | ?????????????????????????????????????????????????? | | ?????????????????????????????????????????????????? | | ?????????????????????????????????????????????????? | | ?????????????????????????????????????????????????? | | ?????????????????????????????????????????????????? | | ?????????????????????????????????????????????????? | | ?????????????????????????????????????????????????? | | ?????????????????????????????????????????????????? | | ?????????????????????????????????????????????????? | | ????????????????????????? c??????????????????????? | | ????????????????????????? ??????????????????????? | | ?????????????????????????c ??????????????????????? | | ????????????????????????? c#?????????????????????? | | ????????????????????????# #?????????????????????? | | ????????????????????????# #?????????????????????? | | ????????????????????????# #?????????????????????? | | ????????????????????????# E#?????????????????????? | | ?????????????????#??????# E#?????????????????????? | | ????????????????## ?????# E#?????????????????????? | | ????????????????? ????#E #####?????????????????? | | ?????????????????? ???# # ?????????????????? | | ???????????????????? ### # ??????????????????? | | ?????????????????## ## c # #??????????????????? | | ?????????????????# # ###############????? | | ??????????????""""" @%* "## """ "#????? | | ??????????? r % % %%!= "## """"" ""#????? | | ?????????? ! /===%["## """ "#????? | | ??????????? % ! "## !%| ""#????? | | ??????????? "## = "#????? | | ???????????? %p #????? | | ????????????"" """"""""" "## """ #????? | | ?????????????"""""""""""" "## " """"" #????? | | ?????????????????######"" c"## """ """ ?????? | | ??????????????????????#"" "##############????? | | ??????????????????????#"" "#?????????????????? | | ??????????????????????#"" "#?????????????????? | | ????????????????????###"" "###########???????? | | ?????????????######## #"" "## #???????? | | ????????????? #???????? | | ????????????? "## #???????? | | ????? ????????###### #"" "## #???????? | | ???? ????????????###"" "## #???????? | | ????" "" ????????????#"" "###########???????? | | ???? ?????????????#"" "#?????????????????? | | ???? ?????????????#"" "#########?????????? | | ##### ################"" "## """"#?????????? | | """"""""""""""""""""""""" "## " "#?????????? | | """"""""""""""""""""""""" X"#?????????? | | "## "#?????????? | +----------------------------------------------------+ Best States ------------- Heat Dissipation 25 Energy Generation 18 Energy Capacity 310 Matter Stores 300 Matter Capacity 300 Sight Range 16 Terrain Scan Density 10 Evasion (%) 50 Recoil Reduction 2 Item Schematics ----------------- None Robot Schematics ------------------ None Fabricated ------------ Nothing Repaired ---------- Nothing Alien Tech Used ----------------- None Achievements -------------- None Challenges ------------ None Game ------ Seed GreatAssaultSuit Manual? 0 Play Time 00:13:32 Cumulative 71.5 hours Start 2025.07.31 @ 09:05:34 End 2025.07.31 @ 09:17:58 Sessions 1 Manual Loads 0 Difficulty Rogue Special Mode None Game No. 296 Rogue 296 Adventurer 0 Explorer 0 Win Type - Total 0 Types 0/0/0/0/0/0/0/0/0/0 Lore% 24 Gallery% 31 Achievement% 26 Wizard Run 0 Options --------- Layout 2 ASCII 0 Keyboard 0 Movement Mouse Keybinds 0 Fullscreen 2 Font 24/Smallcaps Map View 50x44 Zoom Use 0% Tactical HUD 0 Map Filters NONE Filters NONE Steam 1 RUN: ca23afee-e23a-4268-9219-aecac7b53ea9